[Event "Late-Titled-Tuesday-Blitz-April-23-2024"]
[Site "Chess.com"]
[Date "2024.04.23"]
[Round "6"]
[White "gmcorrales"]
[Black "malakismayil"]
[Result "1-0"]
[WhiteElo "2857"]
[BlackElo "2584"]
[TimeControl "180+1"]
[EndTime "15:07:47 PDT"]
[Termination "gmcorrales won on time"]

1. e4 {[%clk 0:03:00.9]} 1... e5 {[%clk 0:02:56.3]} 2. f4 {[%clk 0:03:01.5]}
2... d5 {[%clk 0:02:54.5]} 3. exd5 {[%clk 0:03:00.6]} 3... Qxd5 {[%clk 0:02:42]}
4. Nc3 {[%clk 0:02:59.2]} 4... Qe6 {[%clk 0:02:42.6]} 5. fxe5 {[%clk 0:02:51.9]}
5... Qxe5+ {[%clk 0:02:43.5]} 6. Be2 {[%clk 0:02:50.8]} 6... Bg4 {[%clk
0:02:42.9]} 7. d4 {[%clk 0:02:50.2]} 7... Qe6 {[%clk 0:02:38]} 8. Bf4 {[%clk
0:02:34.7]} 8... Bb4 {[%clk 0:02:30.5]} 9. Qd3 {[%clk 0:02:26.4]} 9... Nf6
{[%clk 0:02:23.5]} 10. O-O-O {[%clk 0:02:22.9]} 10... Bxc3 {[%clk 0:02:17.3]}
11. bxc3 {[%clk 0:02:17.1]} 11... O-O {[%clk 0:01:37.1]} 12. d5 {[%clk
0:02:12.2]} 12... Qb6 {[%clk 0:01:22.1]} 13. Nf3 {[%clk 0:02:01.1]} 13... Nbd7
{[%clk 0:01:18.7]} 14. Qb5 {[%clk 0:01:58]} 14... Rfe8 {[%clk 0:01:01.8]} 15.
Rhe1 {[%clk 0:01:46.9]} 15... Qf2 {[%clk 0:00:57.8]} 16. Bxc7 {[%clk 0:01:15.4]}
16... Rac8 {[%clk 0:00:45.4]} 17. d6 {[%clk 0:01:10.7]} 17... Qxg2 {[%clk
0:00:38]} 18. Qxb7 {[%clk 0:00:46.1]} 18... Nc5 {[%clk 0:00:28.4]} 19. Qc6
{[%clk 0:00:46]} 19... Rxe2 {[%clk 0:00:21.8]} 20. Nd4 {[%clk 0:00:25.8]} 20...
Rxc2+ {[%clk 0:00:10.3]} 21. Kb1 {[%clk 0:00:25.7]} 21... Rb2+ {[%clk 0:00:08]}
22. Kc1 {[%clk 0:00:26.1]} 22... Qxh2 {[%clk 0:00:02.4]} 23. d7 {[%clk
0:00:14.5]} 23... Bxd7 {[%clk 0:00:01.6]} 24. Qxc5 {[%clk 0:00:13.2]} 24... Rxa2
{[%clk 0:00:01.3]} 25. Bxh2 {[%clk 0:00:12.4]} 1-0

[Event "Late-Titled-Tuesday-Blitz-April-23-2024"]
[Site "Chess.com"]
[Date "2024.04.23"]
[Round "6"]
[White "Bilan_Danila"]
[Black "Mikhail_Bryakin"]
[Result "0-1"]
[WhiteElo "2566"]
[BlackElo "2819"]
[TimeControl "180+1"]
[EndTime "15:07:47 PDT"]
[Termination "Mikhail_Bryakin won on time"]

1. d4 {[%clk 0:03:00.9]} 1... g6 {[%clk 0:02:02.4]} 2. Nf3 {[%clk 0:03:00]} 2...
Bg7 {[%clk 0:02:03.2]} 3. Bg5 {[%clk 0:03:00]} 3... h6 {[%clk 0:02:00]} 4. Bh4
{[%clk 0:03:00.1]} 4... d6 {[%clk 0:01:58.2]} 5. c3 {[%clk 0:02:58.6]} 5... g5
{[%clk 0:01:58.1]} 6. Bg3 {[%clk 0:02:58.5]} 6... Nf6 {[%clk 0:01:59]} 7. Nbd2
{[%clk 0:02:58]} 7... Bf5 {[%clk 0:01:59.7]} 8. e3 {[%clk 0:02:52]} 8... O-O
{[%clk 0:02:00.1]} 9. Bc4 {[%clk 0:02:39.5]} 9... c6 {[%clk 0:02:00]} 10. Qe2
{[%clk 0:02:26.7]} 10... Ne4 {[%clk 0:01:59.2]} 11. Nxe4 {[%clk 0:02:19.5]}
11... Bxe4 {[%clk 0:02:00.1]} 12. h4 {[%clk 0:01:58.3]} 12... g4 {[%clk
0:01:59.7]} 13. Nd2 {[%clk 0:01:58.5]} 13... Bf5 {[%clk 0:01:51.2]} 14. e4
{[%clk 0:01:52.3]} 14... Bc8 {[%clk 0:01:51.5]} 15. h5 {[%clk 0:01:48.8]} 15...
d5 {[%clk 0:01:50.6]} 16. exd5 {[%clk 0:01:43.5]} 16... cxd5 {[%clk 0:01:51.5]}
17. Bd3 {[%clk 0:01:42.5]} 17... Nc6 {[%clk 0:01:50.9]} 18. O-O-O {[%clk
0:01:26]} 18... b5 {[%clk 0:01:47.6]} 19. Bxb5 {[%clk 0:01:21.7]} 19... Qb6
{[%clk 0:01:47.8]} 20. f3 {[%clk 0:01:09.3]} 20... Bf5 {[%clk 0:01:40.6]} 21.
fxg4 {[%clk 0:01:05.7]} 21... Bh7 {[%clk 0:01:40.9]} 22. Nb3 {[%clk 0:00:53.9]}
22... a6 {[%clk 0:01:33.1]} 23. Bd3 {[%clk 0:00:51.4]} 23... Bxd3 {[%clk
0:01:33.1]} 24. Rxd3 {[%clk 0:00:46.5]} 24... a5 {[%clk 0:01:30.4]} 25. g5
{[%clk 0:00:45.8]} 25... hxg5 {[%clk 0:01:29.8]} 26. h6 {[%clk 0:00:46]} 26...
Bf6 {[%clk 0:01:30.3]} 27. Nc5 {[%clk 0:00:40.3]} 27... Ra7 {[%clk 0:01:28.1]}
28. Qf3 {[%clk 0:00:19.8]} 28... a4 {[%clk 0:01:25.9]} 29. Qxd5 {[%clk
0:00:16.9]} 29... a3 {[%clk 0:01:26.6]} 30. b4 {[%clk 0:00:16.8]} 30... Rd8
{[%clk 0:01:22.6]} 31. h7+ {[%clk 0:00:16.4]} 31... Kh8 {[%clk 0:01:16.8]} 32.
Qxf7 {[%clk 0:00:16.5]} 32... Nxb4 {[%clk 0:01:17.5]} 33. cxb4 {[%clk
0:00:10.8]} 33... Qxb4 {[%clk 0:01:18.4]} 34. Qb3 {[%clk 0:00:08.7]} 34... Qa5
{[%clk 0:01:18.9]} 35. Be5 {[%clk 0:00:06.7]} 35... Bxe5 {[%clk 0:01:18.6]} 36.
dxe5 {[%clk 0:00:07.6]} 36... Qxc5+ {[%clk 0:01:19]} 37. Kb1 {[%clk 0:00:08.1]}
37... Rc8 {[%clk 0:01:06.5]} 38. e6 {[%clk 0:00:04.9]} 38... Rac7 {[%clk
0:01:03.1]} 39. Rdd1 {[%clk 0:00:02.7]} 39... Rc6 {[%clk 0:00:59.4]} 40. Ka1
{[%clk 0:00:02.7]} 40... Qe5+ {[%clk 0:00:55.9]} 41. Kb1 {[%clk 0:00:02.2]}
41... Rc5 {[%clk 0:00:50.7]} 0-1

[Event "Late-Titled-Tuesday-Blitz-April-23-2024"]
[Site "Chess.com"]
[Date "2024.04.23"]
[Round "6"]
[White "A4RookA3"]
[Black "english_player_89"]
[Result "0-1"]
[WhiteElo "2359"]
[BlackElo "2530"]
[TimeControl "180+1"]
[EndTime "15:07:50 PDT"]
[Termination "english_player_89 won on time"]

1. d4 {[%clk 0:03:00.9]} 1... Nf6 {[%clk 0:02:59.3]} 2. Bf4 {[%clk 0:03:01]}
2... d6 {[%clk 0:02:58.8]} 3. Nc3 {[%clk 0:03:00.9]} 3... g6 {[%clk 0:02:59]} 4.
e4 {[%clk 0:03:01.1]} 4... Bg7 {[%clk 0:02:58.6]} 5. Qd2 {[%clk 0:03:01.7]} 5...
h6 {[%clk 0:02:55.6]} 6. O-O-O {[%clk 0:03:01.3]} 6... Nbd7 {[%clk 0:02:50.8]}
7. e5 {[%clk 0:02:56.7]} 7... Nh5 {[%clk 0:02:34.2]} 8. e6 {[%clk 0:02:48.2]}
8... fxe6 {[%clk 0:02:31]} 9. Bd3 {[%clk 0:02:42.8]} 9... Kf7 {[%clk 0:02:26.7]}
10. Nh3 {[%clk 0:02:23.6]} 10... c6 {[%clk 0:02:14.8]} 11. Qe2 {[%clk
0:02:16.5]} 11... Nf8 {[%clk 0:02:12.1]} 12. Rhe1 {[%clk 0:01:51.5]} 12... Qa5
{[%clk 0:02:08.8]} 13. Bd2 {[%clk 0:01:49.4]} 13... Qb6 {[%clk 0:02:02.7]} 14.
Qf3+ {[%clk 0:01:29.2]} 14... Nf6 {[%clk 0:01:59.8]} 15. Nf4 {[%clk 0:01:27.3]}
15... Qxd4 {[%clk 0:01:28.8]} 16. Be3 {[%clk 0:00:25.2]} 16... Qb4 {[%clk
0:01:26]} 17. h4 {[%clk 0:00:25.1]} 17... e5 {[%clk 0:01:25.4]} 18. Nh3 {[%clk
0:00:21.5]} 18... Bg4 {[%clk 0:01:23.3]} 19. Qg3 {[%clk 0:00:17.8]} 19... Bxd1
{[%clk 0:01:03.5]} 20. Nxd1 {[%clk 0:00:18.7]} 20... Qxe1 {[%clk 0:01:02.4]} 21.
Bd2 {[%clk 0:00:16.5]} 21... Qh1 {[%clk 0:00:58.1]} 22. Qf3 {[%clk 0:00:12.4]}
22... Ke8 {[%clk 0:00:51.3]} 23. Qg3 {[%clk 0:00:11.4]} 23... e4 {[%clk
0:00:42]} 24. Be2 {[%clk 0:00:09.2]} 24... Kd7 {[%clk 0:00:34.3]} 25. f3 {[%clk
0:00:08.5]} 25... Nh5 {[%clk 0:00:25.9]} 26. Qg4+ {[%clk 0:00:08.2]} 26... Kc7
{[%clk 0:00:24.8]} 27. fxe4 {[%clk 0:00:01.8]} 27... Qh2 {[%clk 0:00:20.6]} 28.
Nf4 {[%clk 0:00:01.3]} 28... Be5 {[%clk 0:00:16]} 0-1

[Event "Late-Titled-Tuesday-Blitz-April-23-2024"]
[Site "Chess.com"]
[Date "2024.04.23"]
[Round "6"]
[White "Horokoskii"]
[Black "Arigu07"]
[Result "0-1"]
[WhiteElo "2172"]
[BlackElo "2570"]
[TimeControl "180+1"]
[EndTime "15:07:52 PDT"]
[Termination "Arigu07 won by checkmate"]

1. c4 {[%clk 0:03:00.9]} 1... a6 {[%clk 0:02:55.4]} 2. Nc3 {[%clk 0:03:00.6]}
2... e6 {[%clk 0:02:54]} 3. e4 {[%clk 0:02:59.8]} 3... c5 {[%clk 0:02:53.7]} 4.
Nf3 {[%clk 0:02:58.4]} 4... Qc7 {[%clk 0:02:52.9]} 5. d4 {[%clk 0:02:57.3]} 5...
cxd4 {[%clk 0:02:53.8]} 6. Nxd4 {[%clk 0:02:57]} 6... Nf6 {[%clk 0:02:53.6]} 7.
Be3 {[%clk 0:02:56.5]} 7... Bb4 {[%clk 0:02:52.1]} 8. Bd3 {[%clk 0:02:52.9]}
8... Nc6 {[%clk 0:02:50]} 9. O-O {[%clk 0:02:51.1]} 9... Ne5 {[%clk 0:02:48.8]}
10. Rc1 {[%clk 0:02:45.9]} 10... O-O {[%clk 0:02:42.1]} 11. b3 {[%clk
0:02:41.7]} 11... Neg4 {[%clk 0:02:37.3]} 12. g3 {[%clk 0:02:25.9]} 12... Nxe3
{[%clk 0:02:34.9]} 13. fxe3 {[%clk 0:02:26.8]} 13... Qe5 {[%clk 0:02:29.6]} 14.
Qf3 {[%clk 0:02:01.9]} 14... b6 {[%clk 0:02:21.4]} 15. Qf4 {[%clk 0:01:59.5]}
15... Qh5 {[%clk 0:02:03.4]} 16. Be2 {[%clk 0:01:58.6]} 16... Qa5 {[%clk
0:01:43.3]} 17. e5 {[%clk 0:01:55.6]} 17... Ne8 {[%clk 0:01:33.8]} 18. Ne4
{[%clk 0:01:50.3]} 18... Bb7 {[%clk 0:01:18.2]} 19. Ng5 {[%clk 0:01:49.8]} 19...
f5 {[%clk 0:01:11.5]} 20. Qh4 {[%clk 0:01:35.5]} 20... h6 {[%clk 0:01:09.2]} 21.
Ndf3 {[%clk 0:01:29.1]} 21... Bd2 {[%clk 0:01:01.6]} 22. Rcd1 {[%clk 0:01:28.9]}
22... Bxe3+ {[%clk 0:01:01.2]} 23. Kh1 {[%clk 0:01:29.4]} 23... hxg5 {[%clk
0:00:59.3]} 24. Qh5 {[%clk 0:01:21.4]} 24... g4 {[%clk 0:00:58.1]} 25. Rxd7
{[%clk 0:01:20.2]} 25... Bc6 {[%clk 0:00:53.5]} 26. Re7 {[%clk 0:00:55.1]} 26...
Qxe5 {[%clk 0:00:46.6]} 27. Kg2 {[%clk 0:00:29.9]} 27... Qb2 {[%clk 0:00:35.4]}
28. Re1 {[%clk 0:00:15.2]} 28... Bxf3+ {[%clk 0:00:18]} 29. Kf1 {[%clk
0:00:12.5]} 29... Bxe2+ {[%clk 0:00:18.4]} 30. Rxe2 {[%clk 0:00:12.1]} 30...
Qb1+ {[%clk 0:00:19]} 31. Re1 {[%clk 0:00:10.5]} 31... Qd3+ {[%clk 0:00:19.1]}
32. Re2 {[%clk 0:00:08.2]} 32... Qd1+ {[%clk 0:00:19.1]} 33. Re1 {[%clk
0:00:08.6]} 33... Qf3# {[%clk 0:00:19.4]} 0-1

[Event "Late-Titled-Tuesday-Blitz-April-23-2024"]
[Site "Chess.com"]
[Date "2024.04.23"]
[Round "6"]
[White "finec2"]
[Black "ural58"]
[Result "0-1"]
[WhiteElo "2235"]
[BlackElo "2557"]
[TimeControl "180+1"]
[EndTime "15:07:56 PDT"]
[Termination "ural58 won by checkmate"]

1. e4 {[%clk 0:02:59.6]} 1... d5 {[%clk 0:01:47.8]} 2. exd5 {[%clk 0:02:58.8]}
2... Qxd5 {[%clk 0:01:48]} 3. Nf3 {[%clk 0:02:58.6]} 3... Bg4 {[%clk 0:01:47]}
4. Be2 {[%clk 0:02:58.2]} 4... Nc6 {[%clk 0:01:47.1]} 5. d4 {[%clk 0:02:57.9]}
5... O-O-O {[%clk 0:01:46.9]} 6. c4 {[%clk 0:02:54.2]} 6... Qf5 {[%clk
0:01:46.8]} 7. Be3 {[%clk 0:02:52.5]} 7... Bxf3 {[%clk 0:01:43.7]} 8. Bxf3
{[%clk 0:02:52.3]} 8... Nxd4 {[%clk 0:01:42]} 9. Bxd4 {[%clk 0:02:45.8]} 9...
Qe6+ {[%clk 0:01:24.8]} 10. Be2 {[%clk 0:02:44.3]} 10... c5 {[%clk 0:01:14.2]}
11. Qa4 {[%clk 0:02:28.6]} 11... cxd4 {[%clk 0:01:12.2]} 12. Kf1 {[%clk
0:01:52.3]} 12... Qa6 {[%clk 0:01:07.5]} 13. Qxa6 {[%clk 0:01:45.4]} 13... bxa6
{[%clk 0:01:07.5]} 14. Bd3 {[%clk 0:01:38]} 14... e5 {[%clk 0:01:05.3]} 15. Nd2
{[%clk 0:01:35.8]} 15... g6 {[%clk 0:01:04.8]} 16. g4 {[%clk 0:01:23.9]} 16...
h5 {[%clk 0:00:58]} 17. f3 {[%clk 0:01:23.2]} 17... hxg4 {[%clk 0:00:56.2]} 18.
fxg4 {[%clk 0:01:22.7]} 18... Bh6 {[%clk 0:00:54.6]} 19. Nf3 {[%clk 0:01:09.3]}
19... Bf4 {[%clk 0:00:53.9]} 20. Kg2 {[%clk 0:01:04]} 20... Ne7 {[%clk
0:00:37.8]} 21. g5 {[%clk 0:01:01.5]} 21... Nf5 {[%clk 0:00:30.4]} 22. h4 {[%clk
0:00:56.1]} 22... Ne3+ {[%clk 0:00:27.2]} 23. Kf2 {[%clk 0:00:55.7]} 23... Kd7
{[%clk 0:00:25.2]} 24. c5 {[%clk 0:00:51.9]} 24... a5 {[%clk 0:00:24.2]} 25. a3
{[%clk 0:00:43.1]} 25... Rb8 {[%clk 0:00:22.3]} 26. Rab1 {[%clk 0:00:42.6]}
26... Rb3 {[%clk 0:00:18.7]} 27. Ke2 {[%clk 0:00:21.7]} 27... Rhb8 {[%clk
0:00:18.1]} 28. h5 {[%clk 0:00:13.1]} 28... Rxb2+ {[%clk 0:00:18]} 29. Rxb2
{[%clk 0:00:12.2]} 29... Rxb2+ {[%clk 0:00:18.6]} 30. Ke1 {[%clk 0:00:10]} 30...
Bg3# {[%clk 0:00:14.9]} 0-1

[Event "Late-Titled-Tuesday-Blitz-April-23-2024"]
[Site "Chess.com"]
[Date "2024.04.23"]
[Round "6"]
[White "andrew-blr"]
[Black "Narek_Ghimoyan"]
[Result "1-0"]
[WhiteElo "2625"]
[BlackElo "2444"]
[TimeControl "180+1"]
[EndTime "15:07:59 PDT"]
[Termination "andrew-blr won by resignation"]

1. d4 {[%clk 0:03:00.9]} 1... Nf6 {[%clk 0:02:59.2]} 2. c4 {[%clk 0:03:00.6]}
2... e6 {[%clk 0:02:57.7]} 3. Nc3 {[%clk 0:03:00.6]} 3... d5 {[%clk 0:02:58]} 4.
cxd5 {[%clk 0:02:59.9]} 4... Nxd5 {[%clk 0:02:58]} 5. e4 {[%clk 0:02:59.4]} 5...
Nxc3 {[%clk 0:02:58.5]} 6. bxc3 {[%clk 0:03:00.3]} 6... c5 {[%clk 0:02:59.1]} 7.
Rb1 {[%clk 0:03:00.8]} 7... cxd4 {[%clk 0:02:55.8]} 8. cxd4 {[%clk 0:03:01.7]}
8... Nc6 {[%clk 0:02:56.5]} 9. Nf3 {[%clk 0:03:01.1]} 9... Bb4+ {[%clk
0:02:55.7]} 10. Bd2 {[%clk 0:02:59.8]} 10... Bxd2+ {[%clk 0:02:54.2]} 11. Qxd2
{[%clk 0:02:58]} 11... O-O {[%clk 0:02:55.1]} 12. Bc4 {[%clk 0:02:54.3]} 12...
b6 {[%clk 0:02:54.8]} 13. O-O {[%clk 0:02:52.5]} 13... Bb7 {[%clk 0:02:54.9]}
14. Rfd1 {[%clk 0:02:46.2]} 14... Rc8 {[%clk 0:02:47.5]} 15. Qf4 {[%clk
0:02:45.3]} 15... Ne7 {[%clk 0:02:40.3]} 16. Bd3 {[%clk 0:02:40.6]} 16... Ng6
{[%clk 0:02:39.4]} 17. Qg4 {[%clk 0:02:33.8]} 17... Qf6 {[%clk 0:02:37.8]} 18.
g3 {[%clk 0:02:23]} 18... Rc3 {[%clk 0:02:32.4]} 19. h4 {[%clk 0:02:20.2]} 19...
h5 {[%clk 0:02:14.5]} 20. Qxh5 {[%clk 0:02:18.7]} 20... Rxd3 {[%clk 0:02:14.6]}
21. Rxd3 {[%clk 0:02:17.4]} 21... Bxe4 {[%clk 0:02:12]} 22. Ng5 {[%clk
0:01:25.5]} 22... Nf4 {[%clk 0:01:55.3]} 23. Nxe4 {[%clk 0:01:23.4]} 23... Nxh5
{[%clk 0:01:55.2]} 24. Nxf6+ {[%clk 0:01:22.1]} 24... Nxf6 {[%clk 0:01:56.1]}
25. Ra3 {[%clk 0:01:18.7]} 25... Rd8 {[%clk 0:01:55.3]} 26. Rxa7 {[%clk
0:01:17.3]} 26... Rxd4 {[%clk 0:01:55.1]} 27. Rxb6 {[%clk 0:01:16.5]} 27... Rd1+
{[%clk 0:01:50.4]} 28. Kg2 {[%clk 0:01:16.2]} 28... Rd2 {[%clk 0:01:50.7]} 29.
a4 {[%clk 0:01:07.9]} 29... Ne4 {[%clk 0:01:47.8]} 30. Rb8+ {[%clk 0:01:07.5]}
30... Kh7 {[%clk 0:01:44.6]} 31. Rxf7 {[%clk 0:01:07.1]} 31... Kg6 {[%clk
0:01:44.1]} 32. Rf4 {[%clk 0:01:05.3]} 32... Nc5 {[%clk 0:01:41.5]} 33. Rb5
{[%clk 0:00:59.7]} 33... Nd3 {[%clk 0:01:39.7]} 34. Rg5+ {[%clk 0:00:59.3]}
34... Kh6 {[%clk 0:01:37.9]} 35. Rf8 {[%clk 0:00:56]} 35... Kh7 {[%clk
0:01:17.4]} 36. Rf7 {[%clk 0:00:55.2]} 36... e5 {[%clk 0:01:14.7]} 37. Rfxg7+
{[%clk 0:00:53.4]} 37... Kh8 {[%clk 0:01:14.1]} 38. Rf7 {[%clk 0:00:47.6]} 38...
e4 {[%clk 0:01:11.9]} 39. Kf1 {[%clk 0:00:31.4]} 39... e3 {[%clk 0:01:05.3]} 40.
fxe3 {[%clk 0:00:31.2]} 40... Rd1+ {[%clk 0:00:57.6]} 41. Kg2 {[%clk 0:00:30.6]}
41... Ne1+ {[%clk 0:00:46.3]} 42. Kh3 {[%clk 0:00:29.7]} 42... Nd3 {[%clk
0:00:42.9]} 43. Rh5+ {[%clk 0:00:24.8]} 43... Kg8 {[%clk 0:00:42.4]} 44. Rf4
{[%clk 0:00:24.4]} 44... Ne5 {[%clk 0:00:33.4]} 45. Rxe5 {[%clk 0:00:23.3]} 1-0

[Event "Late-Titled-Tuesday-Blitz-April-23-2024"]
[Site "Chess.com"]
[Date "2024.04.23"]
[Round "6"]
[White "Ghost_Pepper"]
[Black "FM_Kappeler"]
[Result "1-0"]
[WhiteElo "2489"]
[BlackElo "2266"]
[TimeControl "180+1"]
[EndTime "15:08:00 PDT"]
[Termination "Ghost_Pepper won by resignation"]

1. e4 {[%clk 0:03:00.9]} 1... c5 {[%clk 0:02:58.5]} 2. Nf3 {[%clk 0:03:01.2]}
2... e6 {[%clk 0:02:58.7]} 3. g3 {[%clk 0:03:00.6]} 3... Nc6 {[%clk 0:02:57.4]}
4. Bg2 {[%clk 0:02:59.5]} 4... d5 {[%clk 0:02:57.2]} 5. exd5 {[%clk 0:02:59.4]}
5... exd5 {[%clk 0:02:57.4]} 6. d4 {[%clk 0:03:00.3]} 6... Nf6 {[%clk
0:02:56.7]} 7. O-O {[%clk 0:03:00]} 7... Be7 {[%clk 0:02:56.5]} 8. b3 {[%clk
0:02:59.8]} 8... O-O {[%clk 0:02:51.5]} 9. Bb2 {[%clk 0:03:00.3]} 9... cxd4
{[%clk 0:02:48.4]} 10. Nxd4 {[%clk 0:03:01.2]} 10... Re8 {[%clk 0:02:45]} 11. h3
{[%clk 0:02:54.2]} 11... Bf8 {[%clk 0:02:22.8]} 12. Nc3 {[%clk 0:02:45.9]} 12...
Ne4 {[%clk 0:01:49.7]} 13. Nxe4 {[%clk 0:02:38.7]} 13... dxe4 {[%clk 0:01:49]}
14. Nxc6 {[%clk 0:02:36.4]} 14... bxc6 {[%clk 0:01:48.6]} 15. Qxd8 {[%clk
0:02:35.1]} 15... Rxd8 {[%clk 0:01:48.4]} 16. Bxe4 {[%clk 0:02:35.1]} 16... Ba6
{[%clk 0:01:48]} 17. Rfd1 {[%clk 0:02:34.2]} 17... Rac8 {[%clk 0:01:42.9]} 18.
Rxd8 {[%clk 0:02:32.3]} 18... Rxd8 {[%clk 0:01:42.8]} 19. Bxc6 {[%clk
0:02:32.3]} 19... Rd2 {[%clk 0:01:41.8]} 20. Rc1 {[%clk 0:02:15.4]} 20... Bc5
{[%clk 0:01:40.3]} 21. Kh1 {[%clk 0:01:52.4]} 21... Bxf2 {[%clk 0:01:31.5]} 22.
Be5 {[%clk 0:01:37.6]} 22... Re2 {[%clk 0:01:23.2]} 23. Bf4 {[%clk 0:01:32.1]}
23... h5 {[%clk 0:01:17.1]} 24. Bf3 {[%clk 0:01:30.2]} 24... Re6 {[%clk
0:01:09.6]} 25. Kg2 {[%clk 0:01:23.5]} 25... Be3 {[%clk 0:01:08.5]} 26. Bxe3
{[%clk 0:01:23.2]} 26... Rxe3 {[%clk 0:01:08.4]} 27. Bxh5 {[%clk 0:01:23.4]}
27... Bb7+ {[%clk 0:01:06.7]} 28. Kf2 {[%clk 0:01:23.3]} 28... Re5 {[%clk
0:01:04.6]} 29. Be2 {[%clk 0:01:23]} 29... Rf5+ {[%clk 0:01:04]} 30. Ke3 {[%clk
0:01:22.6]} 30... Re5+ {[%clk 0:01:03.1]} 31. Kd2 {[%clk 0:01:22.6]} 31... Rf5
{[%clk 0:01:01.9]} 32. Rf1 {[%clk 0:01:20.6]} 32... Re5 {[%clk 0:00:58.8]} 33.
c4 {[%clk 0:01:18.9]} 33... Bg2 {[%clk 0:00:57.9]} 34. Rf4 {[%clk 0:01:07.8]}
34... Bxh3 {[%clk 0:00:57.5]} 35. Bd3 {[%clk 0:01:07.3]} 35... g5 {[%clk
0:00:54.5]} 36. Rd4 {[%clk 0:01:05.9]} 36... Be6 {[%clk 0:00:46.1]} 37. b4
{[%clk 0:01:04.7]} 37... f5 {[%clk 0:00:43.4]} 38. a4 {[%clk 0:01:02.3]} 38...
f4 {[%clk 0:00:21.3]} 39. gxf4 {[%clk 0:01:01.8]} 39... gxf4 {[%clk 0:00:21.6]}
40. Rxf4 {[%clk 0:01:01.7]} 40... Rh5 {[%clk 0:00:21.2]} 41. Kc3 {[%clk
0:01:01.3]} 41... Rh3 {[%clk 0:00:20]} 42. Kd4 {[%clk 0:01:00.8]} 42... Bd7
{[%clk 0:00:18.5]} 43. b5 {[%clk 0:00:59.2]} 43... Be6 {[%clk 0:00:17.3]} 44. c5
{[%clk 0:00:59]} 44... Bb3 {[%clk 0:00:16.5]} 45. Bc4+ {[%clk 0:00:58.3]} 45...
Bxc4 {[%clk 0:00:15.3]} 46. Kxc4 {[%clk 0:00:59.2]} 46... Ra3 {[%clk 0:00:15]}
47. Kb4 {[%clk 0:00:59.1]} 47... Ra1 {[%clk 0:00:14.4]} 48. c6 {[%clk
0:00:59.3]} 48... Rc1 {[%clk 0:00:13]} 49. a5 {[%clk 0:00:58]} 49... Rb1+ {[%clk
0:00:12.4]} 50. Kc5 {[%clk 0:00:57.9]} 50... Rc1+ {[%clk 0:00:12.6]} 51. Rc4
{[%clk 0:00:57.3]} 51... Rd1 {[%clk 0:00:10.8]} 52. c7 {[%clk 0:00:57.3]} 1-0

[Event "Late-Titled-Tuesday-Blitz-April-23-2024"]
[Site "Chess.com"]
[Date "2024.04.23"]
[Round "6"]
[White "lupta_robin"]
[Black "WoodlandMagic"]
[Result "0-1"]
[WhiteElo "2578"]
[BlackElo "2827"]
[TimeControl "180+1"]
[EndTime "15:08:04 PDT"]
[Termination "WoodlandMagic won by resignation"]

1. c4 {[%clk 0:03:00.9]} 1... e5 {[%clk 0:02:57.6]} 2. Nc3 {[%clk 0:02:59.6]}
2... Bb4 {[%clk 0:02:57.3]} 3. g3 {[%clk 0:02:56.5]} 3... Bxc3 {[%clk
0:02:56.9]} 4. bxc3 {[%clk 0:02:55.5]} 4... Ne7 {[%clk 0:02:55.2]} 5. Bg2 {[%clk
0:02:55.7]} 5... O-O {[%clk 0:02:55.7]} 6. d3 {[%clk 0:02:51.8]} 6... Nbc6
{[%clk 0:02:55.5]} 7. Nf3 {[%clk 0:02:49.3]} 7... d6 {[%clk 0:02:55.2]} 8. O-O
{[%clk 0:02:46.8]} 8... h6 {[%clk 0:02:53.1]} 9. e4 {[%clk 0:02:22]} 9... a6
{[%clk 0:02:49.9]} 10. d4 {[%clk 0:02:17.4]} 10... b5 {[%clk 0:02:42.1]} 11. c5
{[%clk 0:02:06]} 11... exd4 {[%clk 0:02:37.1]} 12. cxd4 {[%clk 0:02:05.1]} 12...
dxc5 {[%clk 0:02:37]} 13. d5 {[%clk 0:01:57.5]} 13... Na5 {[%clk 0:02:32.8]} 14.
Qc2 {[%clk 0:01:49.9]} 14... Nc4 {[%clk 0:02:26.9]} 15. a4 {[%clk 0:01:44.9]}
15... Bg4 {[%clk 0:02:25.2]} 16. Nd2 {[%clk 0:01:26.9]} 16... Nxd2 {[%clk
0:02:18.3]} 17. Bxd2 {[%clk 0:01:27.8]} 17... c4 {[%clk 0:02:18]} 18. Bb4 {[%clk
0:01:23.7]} 18... Re8 {[%clk 0:02:16.2]} 19. h3 {[%clk 0:01:18.4]} 19... Bd7
{[%clk 0:02:13.1]} 20. Rfd1 {[%clk 0:01:06.5]} 20... Ng6 {[%clk 0:02:06.8]} 21.
f4 {[%clk 0:01:05.5]} 21... Qf6 {[%clk 0:02:02.4]} 22. e5 {[%clk 0:01:03.6]}
22... Qb6+ {[%clk 0:02:02.2]} 23. Qf2 {[%clk 0:00:59.1]} 23... Qxf2+ {[%clk
0:01:56.8]} 24. Kxf2 {[%clk 0:01:00]} 24... a5 {[%clk 0:01:57]} 25. Bc5 {[%clk
0:00:57.1]} 25... b4 {[%clk 0:01:56.9]} 26. d6 {[%clk 0:00:42.1]} 26... c6
{[%clk 0:01:53.3]} 27. Rd4 {[%clk 0:00:29.9]} 27... c3 {[%clk 0:01:53]} 28. g4
{[%clk 0:00:29.9]} 28... Rab8 {[%clk 0:01:47.4]} 29. Rc4 {[%clk 0:00:29.1]}
29... Nf8 {[%clk 0:01:30]} 30. Be3 {[%clk 0:00:29.2]} 30... Ne6 {[%clk
0:01:12.4]} 31. Bxc6 {[%clk 0:00:26.4]} 31... Bxc6 {[%clk 0:01:09.3]} 32. Rxc6
{[%clk 0:00:26.3]} 32... Rec8 {[%clk 0:01:08.4]} 33. Rxc8+ {[%clk 0:00:26.6]}
33... Rxc8 {[%clk 0:01:09.1]} 34. f5 {[%clk 0:00:26.7]} 34... Nf8 {[%clk
0:01:02.4]} 35. Ke2 {[%clk 0:00:20.7]} 35... b3 {[%clk 0:01:01.8]} 36. Kd3
{[%clk 0:00:12.8]} 36... Nd7 {[%clk 0:00:55.6]} 37. Bd4 {[%clk 0:00:12.1]} 37...
c2 {[%clk 0:00:55.5]} 38. Bb2 {[%clk 0:00:11.3]} 38... Nxe5+ {[%clk 0:00:52.3]}
39. Bxe5 {[%clk 0:00:11.7]} 39... c1=Q {[%clk 0:00:52.6]} 40. Rxc1 {[%clk
0:00:12.3]} 40... Rxc1 {[%clk 0:00:52.9]} 41. Kd2 {[%clk 0:00:11.3]} 41... Rc2+
{[%clk 0:00:50.1]} 42. Kd3 {[%clk 0:00:11.2]} 42... Rc8 {[%clk 0:00:44.7]} 43.
Ke4 {[%clk 0:00:11.3]} 43... f6 {[%clk 0:00:43.9]} 44. Bd4 {[%clk 0:00:10.8]}
44... Kf7 {[%clk 0:00:43.3]} 45. Kd5 {[%clk 0:00:11.1]} 45... Rc2 {[%clk
0:00:34.4]} 0-1